Cogmind - Beta 17.1 @@@ ROGUE MODE // 2026.09.15 @ 20:01:41 Player: Ethranok Result: Destroyed by X-62 Marksman with Gauss Rifle Performance ------------- Evolutions (2) 1000 Regions Visited (4) 800 Robots Destroyed (28) 140 Value Destroyed (726) 726 Prototype IDs (0) 0 Alien Tech Used (0) 0 Bonus (0) 0 TOTAL SCORE: 2666 Bonus ------- None Cogmind --------- Core Integrity 0/550 Matter 300/300 Energy 100/100 System Corruption 0% Temperature Cool (0) Movement Core (350) Ox6 Location -8/Materials Parts ------- > --- POWER (1) -------- (None) > --- PROPULSION (2) --- (None) > --- UTILITY (6) ------ Large Storage Unit > --- WEAPON (2) ------- (None) > --- INVENTORY (15) --- (None) Peak State ------------ > --- POWER ------------ Ion Engine > --- PROPULSION ------- Improved Treads Improved Treads > --- UTILITY ---------- Large Storage Unit Structural Scanner > --- WEAPON ----------- Autogun Grenade Launcher > --- INVENTORY -------- SUBCON Basin [Rating: 28] Favorites ----------- Power Ion Engine Engine Ion Engine Power Core Light Nuclear Core Propulsion Improved Treads Treads Improved Treads Utility Large Storage Unit Device Structural Scanner Storage Large Storage Unit Protection Backup Plating I Weapon Autogun Ballistic Gun Autogun Launcher Grenade Launcher Special Weapon Mining Laser Build | -11 -10 -10 -10 -8 ------- Run | Yrd Mat Min Sub Mat Slots Evolved 4 | . . . . 4 Power . | . . . . . Propulsion . | . . . . . Utility 4 | . . . . 4 Weapon . | . . . . . Parts Attached 19 | 6 11 2 . . Power 3 | 1 2 . . . Engine 2 | 1 1 . . . Core 1 | . 1 . . . Reactor . | . . . . . Propulsion 5 | 2 3 . . . Treads 5 | 2 3 . . . Leg . | . . . . . Wheel . | . . . . . Hover . | . . . . . Flight . | . . . . . Utility 4 | 1 2 1 . . Device 2 | . 1 1 . . Storage 2 | 1 1 . . . Processor . | . . . . . Hackware . | . . . . . Protection . | . . . . . Artifact . | . . . . . Weapon 7 | 2 4 1 . . Energy Gun . | . . . . . Energy Cannon . | . . . . . Ballistic Gun 5 | 2 3 . . . Ballistic Cannon . | . . . . . Launcher 1 | . . 1 . . Special Weapon 1 | . 1 . . . Impact Weapon . | . . . . . Slashing Weapon . | . . . . . Piercing Weapon . | . . . . . Special Melee Weapon . | . . . . . Unidentified Prototypes . | . . . . . Parts Lost 7 | . 1 . 2 4 Power 1 | . . . 1 . Propulsion 2 | . . . . 2 Utility 2 | . 1 . . 1 Weapon 2 | . . . 1 1 Highest Loss Streak 4 | . 1 . 2 4 To Critical Strikes . | . . . . . Average Backups 8 | 2 11 15 1 . Power . | 1 . . . . Propulsion 2 | . 3 4 . . Utility 2 | . 2 5 . . Weapon 3 | 1 4 6 . . Tool/Special . | . . . . . Unused Backups 7 | . 2 . 5 . Power . | . . . . . Propulsion 2 | . . . 2 . Utility 2 | . 1 . 1 . Weapon 3 | . 1 . 2 . Tool/Special . | . . . . . Average Slot Usage (%) 83 | . 84 96 98 15 Engine 9 | . 7 14 13 . Core 3 | . 6 . . . Treads 24 | . 24 28 28 3 Device 6 | . 3 10 14 1 Storage 13 | . 14 14 13 9 Protection 1 | . 2 . . . Ballistic Gun 16 | . 21 14 13 . Launcher 5 | . . 13 14 1 Special Weapon 2 | . 3 . . . Peak Build Rating 28 | 6 14 12 28 25 Average Rating 13 | 4 9 11 25 6 On Entrance 10 | . 6 11 12 25 Avg Prop Armor Cover (%) . | . . . . . Naked Turns . | . . . . . Heaviest Build 32 | 13 32 32 32 24 Greatest Support 46 | 40 46 46 46 46 Greatest Overweight (x) 8 | . 8 . . 6 Average Overweight (x) . | . . . . 2 Largest Inventory Capacity 15 | 8 15 15 15 15 Average Capacity 14 | 7 14 15 14 15 Most Carried 15 | 5 15 15 15 15 Average Carried 11 | 2 11 14 14 3 Final Capacity 15 | 8 15 15 15 15 Final Carried 15 | 2 15 15 15 . Class Distribution -------------------- 100% | Mutant Dominant Class ---------------- Mutant | -10/Materials Mutant | -10/Mines Mutant | -10/Subcaves Mutant | -8/Materials Resources | -11 -10 -10 -10 -8 ----------- Run | Yrd Mat Min Sub Mat Matter Collected 1164 | 195 783 19 167 . Remotely . | . . . . . Salvage Created 772 | . 643 . 129 . Parts 48 | . 38 . 10 . Haulers Intercepted 1 | . 1 . . . Recyclers Shooed . | . . . . . Parts Field Recycled . | . . . . . Retrieved Matter . | . . . . . Parts Self-Destructed 5 | . . . 5 . Prevented . | . . . . . Parts Restored . | . . . . . Kills | -11 -10 -10 -10 -8 ------- Run | Yrd Mat Min Sub Mat Combat Hostiles Destroyed 19 | . 13 . 6 . Guns 13 | . 13 . . . AOE 6 | . . . 6 . Classes Destroyed 9 | . 8 . 1 . Worker 1 | . 1 . . . Builder 1 | . 1 . . . Hauler 1 | . 1 . . . Recycler 1 | . 1 . . . Operator 2 | . 2 . . . Watcher 3 | . 3 . . . Swarmer 4 | . 4 . . . Grunt 9 | . 9 . . . Subdweller 6 | . . . 6 . Best Kill Streak 3 | . 3 . 2 . Combat Bots Only 3 | . 3 . 2 . Max Kills in Single Turn 2 | . 2 . 2 . Gunslinging 1 | . 1 . . . Exploded 2 | . . . 2 . Melee . | . . . . . Uniques/NPCs Destroyed . | . . . . . Combat | -11 -10 -10 -10 -8 -------- Run | Yrd Mat Min Sub Mat Hostile Shots Fired 124 | . 63 5 16 40 Missed 25 | . 14 1 5 5 Hits 99 | . 49 4 11 35 Projectile 99 | . 49 4 11 35 AOE 5 | . . 5 . . Critical Strikes 4 | . . . 1 3 Damage Taken 1919 | . 549 201 337 832 Core 677 | . 75 . 49 553 Absorbed by Shields . | . . . . . Regen/Repaired (Parts) 284 | . 284 . . . Core Remaining (%) 75 | 100 . . 50 . Volleys Fired 86 | . 68 5 13 . Largest 2 | . 2 1 2 . Hottest 100 | . 100 23 53 . Shots Fired 137 | . 113 5 19 . Gun 123 | . 111 5 7 . Cannon . | . . . . . Launcher 12 | . . . 12 . Special 2 | . 2 . . . Kinetic 123 | . 111 5 7 . Thermal 2 | . 2 . . . Explosive 12 | . . . 12 . Electromagnetic . | . . . . . Robot Hit Streak 12 | . 12 2 6 . Robot Miss Streak 4 | . 4 3 2 . Penetration Max . | . . . . . Secondary Targets 1 | . 1 . . . Max Gunslinging Chain 1 | . 1 . . . Shots Hit Robots 79 | . 69 2 8 . Core Hits 42 | . 29 1 12 . Critical Kills 1 | . 1 . . . Critical Parts Destroyed . | . . . . . Critical Strikes 1 | . 1 . . . Destroy 1 | . 1 . . . Melee Attacks . | . . . . . Impact . | . . . . . Slashing . | . . . . . Piercing . | . . . . . Sneak Attacks . | . . . . . Combat Hostiles . | . . . . . Follow-up Attacks . | . . . . . Damage Inflicted 1483 | . 960 37 486 . Guns 1000 | . 926 30 44 . Cannons . | . . . . . Explosions 442 | . . . 442 . Melee . | . . . . . Ramming 41 | . 34 7 . . Kinetic 1000 | . 926 30 44 . Thermal . | . . . . . Explosive 442 | . . . 442 . Electromagnetic . | . . . . . Impact . | . . . . . Slashing . | . . . . . Piercing . | . . . . . Highest Corruption . | . . . . . Average Corruption . | . . . . . Corruption Purged . | . . . . . Corruption Blocked . | . . . . . Overload Shots . | . . . . . Overflow Damage . | . . . . . Projectiles . | . . . . . Explosions . | . . . . . Melee . | . . . . . Knockbacks . | . . . . . Impact . | . . . . . Kinetic . | . . . . . Secondary . | . . . . . Self-Inflicted Damage 77 | . 11 . 66 . Shots 3 | . 1 . 2 . Rammed 11 | . 9 2 . . Targets Rammed 12 | . 10 2 . . Kicked . | . . . . . Crushed 1 | . 1 . . . Highest Temperature 243 | . 52 6 243 . Average Temperature 20 | . 13 3 121 . Received Heat Transfer 733 | . 246 . 316 171 Effects 1 | . . . 1 . Energy Bleed 1 | . . . 1 . Siege Activations . | . . . . . Martial Activations . | . . . . . Shielding Activations . | . . . . . Robots Disrupted . | . . . . . Combat Hostiles . | . . . . . Robots Corrupted . | . . . . . Combat Hostiles . | . . . . . Parts Fried . | . . . . . Impact Corruptions . | . . . . . Robots Melted . | . . . . . Combat Hostiles . | . . . . . Parts Melted . | . . . . . Heat Transferred . | . . . . . Parts Sabotaged . | . . . . . Parts Stolen . | . . . . . Parts Stripped . | . . . . . Power Chain Reactions . | . . . . . Alert | -11 -10 -10 -10 -8 ------- Run | Yrd Mat Min Sub Mat Maximum Alert Level . | . . . . . Low Security (%) 100 | 100 100 100 . 100 Level 1 . | . . . . . Level 2 . | . . . . . Level 3 . | . . . . . Level 4 . | . . . . . Level 5 . | . . . . . High Security . | . . . . . Max Security . | . . . . . Peak Influence 141 | . 141 24 . 15 Initial 24 | . . 24 . . Average 44 | . 64 1 . 2 Influence Increases 504 | . 474 . . 30 Destroy 0b10 Robot/C 260 | . 260 . . . Destroy 0b10 Robot/NC 45 | . 45 . . . Destroy Leader 68 | . 68 . . . Successful Hack 33 | . 33 . . . Disable Machine 30 | . 30 . . . Destroy Structure 8 | . 8 . . . Lose Combat Pursuer 60 | . 30 . . 30 Influence Decreases 504 | . 411 63 . 30 Entered New Map 39 | . . 39 . . Time Decay 455 | . 401 24 . 30 Lost Part 10 | . 10 . . . Squads Dispatched 8 | . 5 . . 3 Investigation 3 | . 3 . . . Extermination . | . . . . . Reinforcement 5 | . 2 . . 3 Assault . | . . . . . Garrison . | . . . . . Intercept . | . . . . . Searches Triggered . | . . . . . Construction Impeded . | . . . . . Haulers Reinforced . | . . . . . Active Scanning Responses . | . . . . . Cargo Convoy Interrupts . | . . . . . Stealth | -11 -10 -10 -10 -8 --------- Run | Yrd Mat Min Sub Mat Distress Signals 2 | . 2 . . . Communications Jammed . | . . . . . Distress Signals . | . . . . . Times Spotted 39 | . 24 1 6 8 Peak Tracking Total 5 | . 3 1 2 5 Tactical Retreats 5 | . 3 . . 2 Traps | -11 -10 -10 -10 -8 ------- Run | Yrd Mat Min Sub Mat Traps Triggered 5 | . 5 . . . Indirectly . | . . . . . Trap Hack Attempts . | . . . . . Triggered . | . . . . . Disarmed . | . . . . . Reprogrammed . | . . . . . Reused . | . . . . . Traps Extracted . | . . . . . Installed . | . . . . . Triggered . | . . . . . Machines | -11 -10 -10 -10 -8 ---------- Run | Yrd Mat Min Sub Mat Machines Disabled 2 | . 2 . . . Max in Single Turn 2 | . 2 . . . Machines Repaired . | . . . . . Machines Dismantled . | . . . . . Machines Sabotaged . | . . . . . Overloaded Fab Kills . | . . . . . Hacking | -11 -10 -10 -10 -8 --------- Run | Yrd Mat Min Sub Mat Machines Accessed 13 | . 9 1 2 1 Terminals 8 | . 6 1 . 1 Fabricators . | . . . . . Repair Stations 1 | . 1 . . . Recycling Units 2 | . 2 . . . Scanalyzers . | . . . . . Garrison Access . | . . . . . Total Hacks 43 | . 33 5 2 3 Successful 20 | . 15 2 2 1 Failed 23 | . 18 3 . 2 Catastrophic 2 | . 2 . . . Database Lockouts . | . . . . . Manual 23 | . 20 . . 3 Terminals 28 | . 20 5 . 3 Fabricators . | . . . . . Repair Stations 11 | . 11 . . . Recycling Units 2 | . 2 . . . Scanalyzers . | . . . . . Garrison Access . | . . . . . Terminal Hacks 10 | . 5 2 2 1 Record 1 | . 1 . . . Robot Analysis 1 | . 1 . . . Open Door 1 | . . . 1 . Branch Access Points 1 | . 1 . . . Terminal Index 2 | . 1 . . 1 Dispatch Records 1 | . . 1 . . Registered Components 1 | . 1 . . . Zone Layout 1 | . . 1 . . Release Object 1 | . . . 1 . Fabricator Hacks . | . . . . . Repair Station Hacks 7 | . 7 . . . Scan Component 3 | . 3 . . . Repair 3 | . 3 . . . Refit 1 | . 1 . . . Recycling Unit Hacks 2 | . 2 . . . Report Inventory 2 | . 2 . . . Scanalyzer . | . . . . . Garrison Access Hacks . | . . . . . Unauthorized Hacks 1 | . 1 . . . Terminals 1 | . 1 . . . Assimilate 1 | . 1 . . . Fabricators . | . . . . . Repair Stations . | . . . . . Recycling Units . | . . . . . Scanalyzers . | . . . . . Garrison Access . | . . . . . Data Cores Recovered . | . . . . . Used . | . . . . . Hacking Detections 9 | . 7 1 . 1 Full Trace Events 5 | . 5 . . . Feedback Events . | . . . . . Feedback Blocked . | . . . . . Robot Schematics Acquired . | . . . . . Robots Built . | . . . . . Authchips . | . . . . . Time . | . . . . . Total Robot Build Rating . | . . . . . Part Schematics Acquired . | . . . . . Parts Built . | . . . . . Authchips . | . . . . . Time . | . . . . . Total Part Build Rating . | . . . . . Part Studies Acquired . | . . . . . Parts Repaired 3 | . 3 . . . Time 84 | . 84 . . . Parts Recycled . | . . . . . Recycled Matter . | . . . . . Retrieved Matter . | . . . . . Retrieved Components . | . . . . . Parts Scanalyzed . | . . . . . Part Schematics Acquired . | . . . . . Parts Damaged . | . . . . . Bothacking | -11 -10 -10 -10 -8 ------------ Run | Yrd Mat Min Sub Mat Used RIF Installer . | . . . . . Robots Hacked . | . . . . . Non-combat . | . . . . . Combat . | . . . . . Robot Hacks Applied . | . . . . . Relay Couplers Released . | . . . . . Fabnet Peak Effective % . | . . . . . Robots Rewired . | . . . . . Allies Hacked . | . . . . . Hacks Repelled . | . . . . . Allies | -11 -10 -10 -10 -8 -------- Run | Yrd Mat Min Sub Mat Total Allies . | . . . . . Largest Group . | . . . . . Highest-Rated Group . | . . . . . Highest-Rated Ally . | . . . . . Total Orders . | . . . . . Ally Attacks . | . . . . . Total Damage . | . . . . . Kills . | . . . . . Allies Corrupted . | . . . . . Allies Melted . | . . . . . Intel | -11 -10 -10 -10 -8 ------- Run | Yrd Mat Min Sub Mat Active Infowar (turns) 1531 | . 420 392 673 46 Structural 1531 | . 420 392 673 46 Robot Analysis Total 1 | . 1 . . . Derelict Logs Recovered 2 | . . 1 1 . Drone Launches . | . . . . . Drone Recoveries . | . . . . . Exploration | -11 -10 -10 -10 -8 ------------- Run | Yrd Mat Min Sub Mat Turns Passed 3286 | 61 1789 517 673 246 Spaces Moved 1610 | 36 818 313 396 47 Core 31 | 9 2 . . 20 Treads 1579 | 27 816 313 396 27 Legs . | . . . . . Wheels . | . . . . . Hover . | . . . . . Flight . | . . . . . Fastest Speed 50 | 50 160 160 160 160 Average Speed 168 | 132 172 160 160 245 Slowest Speed 450 | 160 450 160 160 350 Overloaded Moves . | . . . . . Propulsion Burnouts . | . . . . . Robots Hopped . | . . . . . Potential Cave-ins . | . . . . . Cave-ins Triggered . | . . . . . Exploration Rate (%) 38 | 4 83 66 34 5 Regions Visited 4 Branch Regions 2 Pre-discovered Areas . | . . . . . Known Exits Taken 1 | . 1 . . . Unknown Exits Taken 3 | 1 . 1 1 . Scrap Searched 1 | . . 1 . . Spaces Dug 2 | . 2 . . . Terrain Destroyed 68 | . 7 . 61 . Melee . | . . . . . Projectile 2 | . 2 . . . AOE 66 | . 5 . 61 . Terrain Rammed . | . . . . . Walls Destroyed . | . . . . . Machines Disabled . | . . . . . Actions | -11 -10 -10 -10 -8 --------- Run | Yrd Mat Min Sub Mat Total 2065 | 49 1092 324 422 178 Wait 259 | . 129 . 1 129 Move 1606 | 35 817 312 395 47 Hop . | . . . . . Pick Up 46 | 8 34 2 2 . Fast Attach . | . . . . . Attach 23 | 6 15 1 1 . Detach 1 | . 1 . . . Swap 13 | . 11 1 1 . Drop 18 | . 7 1 9 1 Fire 86 | . 68 5 13 . Melee . | . . . . . Ram . | . . . . . Kick . | . . . . . Crush 12 | . 10 2 . . Escape Stasis . | . . . . . Rewire . | . . . . . Trap . | . . . . . Miscellaneous 1 | . . . . 1 Route ------- -11/Scrapyard -10/Materials (discovered 5 exits: *Mat x3 / *Min x2) -10/Mines (discovered 3 exits: *Mat x2 / *Sub) -10/Subcaves -8/Materials History --------- Turn | Location | Event 22 | -11/Scrapyard | Discovered new exit (range 15) 62 | -11/Scrapyard | Entered Materials 160 | -10/Materials | Discovered new exit (range 16) 258 | -10/Materials | Discovered new exit (range 15) 363 | -10/Materials | Build established: Mutant 456 | -10/Materials | Repaired Lgt. Treads 484 | -10/Materials | Repaired Assault Rifle 489 | -10/Materials | Discovered new exit (range 5) 562 | -10/Materials | Derelicts attacked the area 576 | -10/Materials | Discovered new exit (range 7) 697 | -10/Materials | Identified exit to Mines 1082 | -10/Materials | Discovered new exit (range 3) 1516 | -10/Materials | Repaired Imp. Treads 1851 | -10/Materials | Entered Mines 1852 | -10/Mines | Assembled infested the area 1857 | -10/Mines | Assisted by a Guerilla fighting off Assembled 1885 | -10/Mines | Identified exit to Materials 2224 | -10/Mines | Discovered exit to Materials (range 10) 2345 | -10/Mines | Discovered new exit (range 9) 2368 | -10/Mines | Entered Subcaves 2369 | -10/Subcaves | Approached by a straggling Scientist 2391 | -10/Subcaves | Learned Materials security intel 2460 | -10/Subcaves | Found SUBCON Basin 2769 | -10/Subcaves | Ambushed by Subdwellers from Twisted Machinery 2847 | -10/Subcaves | Shifting Twisted Machinery released Sub. Machine Gun 2856 | -10/Subcaves | Shifting Twisted Machinery released Sub. Beam Cannon 3006 | -10/Subcaves | Discovered new exit (range 11) 3041 | -10/Subcaves | Entered Materials 3041 | -8/Materials | Evolved 4 slots: Utility x4 3105 | -8/Materials | Released subatomizers from SUBCON Basin 3118 | -8/Materials | Lost 4 parts (2n1u1w) 3273 | -8/Materials | Core integrity fell below 50% 3282 | -8/Materials | Core integrity fell below 20% 3287 | -8/Materials | Destroyed by X-62 Marksman with Gauss Rifle Last Messages --------------- 03079_ Imp. Treads destroyed. 03083_ Penetrated by Slug. 03085_ Grenade Launcher destroyed. 03087_ Imp. Treads destroyed. 03087_ Structural Scanner destroyed. 03105_ Dropped SUBCON Basin. 03105_ Released subatomizers from SUBCON Basin. 03131_ ALERT: Suspicious intruders detected, dispatching Specialist reinforcements to area. 03147_ Penetrated by Slug. 03152_ U-05 Engineer builds a Wall. 03175_ Subatomizers consume a piece of Processing Tank. 03206_ Subatomizers consume the Door. 03226_ Subatomizers consume a piece of Processing Tank. 03259_ ALERT: Suspicious intruders detected, dispatching Specialist reinforcements to area. 03266_ Penetrated by Slug. 03272_ Critical hit (Burn: +37). 03274_ Penetrated by Slug. 03280_ Critical hit (Burn: +37). 03283_ Slug penetrates Wall. 03286_ Penetrated by Slug. Map ----- +----------------------------------------------------+ | | | ?????????????????????????????????????????????????? | | ?????????????????????????????????????????????????? | | ?????????????????????????????????????????????????? | | ?????????????????????????????????????????????????? | | ?????????????????????????????????????????????????? | | ?????????????????????????????????????????????????? | | ?????????????????????????????????????????????????? | | ??????????????##################?????????????????? | | ??????????????##################?????????????????? | | ??????????????## ##?????????????????? | | ??????????????## ######## ??????????? | | ??????????????## ######## ??????????? | | ??????????????############# # "T" # ??????????? | | ??????????????############# # # ??????????? | | ?????????????????????????## # = # ??????????? | | ?????????????????????????## + # ??????????? | | ?????????????????????????##% # # ??????????? | | ?????????????????????????## # # ??????????? | | ????????????????########### % ########+??????????? | | ????????????????# # # ??????????? | | ????????????????# # %# ?????????????????? | | ????????????????# # # ?????????????????? | | ????????????????# & g / + ?????????????????? | | ????????????????# xx# # ?????????????????? | | ????????????????# """ " @# # ?????????????????? | | ????????????????# " " # # ?????????????????? | | ????????????????# " " " # # ?????????????????? | | ????????????????########### ##?????????????????? | | ?????????????????????????## ##?????????????????? | | ?????????????????????????## ##?????????????????? | | ?????????????????????????## ##?????????????????? | | ?????????????????????????## ##?????????????????? | | ?????????????????????????## ##?????????????????? | | ?????????????????????????# #?????????????????? | | ??????????????????????????? ??????????????????? | | ??????????????????????????? H ??????????????????? | | ??????????????????????????? ???????????????????? | | ?????????????????????????????????????????????????? | | ?????????????????????????????????????????????????? | | ?????????????????????????????????????????????????? | | ?????????????????????????????????????????????????? | | ?????????????????????????????????????????????????? | | ?????????????????????????????????????????????????? | | ?????????????????????????????????????????????????? | | ?????????????????????????????????????????????????? | | ?????????????????????????????????????????????????? | | ?????????????????????????????????????????????????? | | ?????????????????????????????????????????????????? | | ?????????????????????????????????????????????????? | +----------------------------------------------------+ Best States ------------- Heat Dissipation 31 Energy Generation 14 Energy Capacity 250 Matter Stores 300 Matter Capacity 300 Sight Range 16 Terrain Scan Density 10 Armor Coverage 80 Evasion (%) 40 Recoil Reduction 2 Item Schematics ----------------- None Robot Schematics ------------------ None Fabricated ------------ Nothing Repaired ---------- Lgt. Treads | 15% | -10/Materials Assault Rifle | 5% | -10/Materials Imp. Treads | 54% | -10/Materials Studied --------- None Alien Tech Used ----------------- None Achievements -------------- None Challenges ------------ None Game ------ Seed NeutrinoCargoSaw Manual? 0 Play Time 00:24:53 Cumulative 28.3 hours Start 2026.09.15 @ 19:36:31 End 2026.09.15 @ 20:01:41 Sessions 1 Manual Loads 0 Difficulty Rogue Special Mode None Game No. 37 Rogue 37 Adventurer 0 Explorer 0 Win Type - Total 0 Types 0/0/0/0/0/0/0/0/0/0 Lore% 9 Gallery% 14 Achievement% 17 Wizard Run 0 Options --------- Layout 0 ASCII 0 Keyboard 0 Movement Arrows Keybinds 0 Fullscreen 1 Font 24/Smallcaps Map View 113x50 Zoom Use 73% Tactical HUD 1 Map Filters NONE Filters NONE Steam 1 RUN: da2bacba-8d6d-4713-bec5-014a37be7e07